Cogmind - Beta 16.1 @@@ ROGUE MODE // 2026.05.02 @ 11:44:06 Player: f3-rnm Result: Destroyed by G-67 Veteran with Plasma Rifle Performance ------------- Evolutions (3) 1500 Regions Visited (13) 2600 Robots Destroyed (58) 290 Value Destroyed (1415) 1415 Prototype IDs (39) 780 Alien Tech Used (1) 200 Bonus (3189) 3189 TOTAL SCORE: 9974 Bonus ------- High Alert Combat Kills 93 Follower Combat Kills 1639 Aligned with FarCom 300 Met Imprinter 300 Triggered Deep Caves Wall 500 Exposed GOLEM Chamber 500 Friendly Fire -143 Cogmind --------- Core Integrity 0/700 Matter 258/300 Energy 95/100 System Corruption 1% Temperature Cool (37) Movement Core (100) Ox1 Location -6/Proximity Caves Parts ------- > --- POWER (2) -------- (None) > --- PROPULSION (4) --- Assembled Alloy Leg > --- UTILITY (6) ------ GOLEM Unit > --- WEAPON (2) ------- Rocket Launcher > --- INVENTORY (5) ---- Medium Matter Pod (100) Weapon Cycler Peak State ------------ > --- POWER ------------ Light Nuclear Core Heavy Antimatter Reactor > --- PROPULSION ------- Medium Treads Medium Treads Medium Treads Enhanced Flexi-carbon Leg > --- UTILITY ---------- Army-in-a-Box > --- WEAPON ----------- Improved KE Penetrator Improved KE Penetrator > --- INVENTORY -------- Medium Matter Pod Nanoactuators Improved Light Armor Plating High-powered Tractor Beam Rocket Launcher [Rating: 99] Favorites ----------- Power Light Ion Engine Engine Light Ion Engine Power Core Light Nuclear Core Reactor Heavy Antimatter Reactor Propulsion Medium Treads Treads Medium Treads Leg Enhanced Flexi-carbon Leg Wheel Compact Wheel Hover Unit Zionite Glidesys I Utility High-capacity Storage Unit Device Improved Hardlight Generator Storage High-capacity Storage Unit Processor Advanced Targeting Computer Hackware Hacking Suite Protection Improved Light Armor Plating Weapon Improved KE Penetrator Energy Gun Medium Laser Energy Cannon Heavy Particle Cannon Ballistic Gun Improved KE Penetrator Ballistic Cannon Mini Assault Cannon Launcher Rocket Launcher Impact Weapon Mace Slashing Weapon Chainsword Build | -11 -10 -10 -10 -9 -8 -7 -7 -7 -7 -7 -7 -7 -6 ------- Run | Yrd Mat Min Exi Min Mat Fac Was Fac Low Low Zio Dee Pro Slots Evolved 6 | . . . . . 4 2 . . . . . . . Power . | . . . . . . . . . . . . . . Propulsion 2 | . . . . . 2 . . . . . . . . Utility 4 | . . . . . 2 2 . . . . . . . Weapon . | . . . . . . . . . . . . . . Parts Attached 75 | 6 2 . 2 . 9 10 4 12 3 3 6 17 1 Power 8 | 1 . . . . 1 2 . 1 . 1 . 2 . Engine 4 | 1 . . . . 1 . . . . . . 2 . Core 3 | . . . . . . 2 . . . 1 . . . Reactor 1 | . . . . . . . . 1 . . . . . Propulsion 20 | 2 . . . . 3 2 2 4 . . 2 5 . Treads 9 | 2 . . . . 1 . 2 2 . . 2 . . Leg 1 | . . . . . . . . 1 . . . . . Wheel 5 | . . . . . 2 2 . . . . . 1 . Hover 5 | . . . . . . . . 1 . . . 4 . Flight . | . . . . . . . . . . . . . . Utility 31 | 1 2 . 2 . 4 2 2 4 3 2 . 8 1 Device 9 | . 1 . . . 1 1 . . 2 2 . 1 1 Storage 4 | 1 1 . 1 . . . 1 . . . . . . Processor 3 | . . . . . 1 . . 1 1 . . . . Hackware 1 | . . . . . . . . 1 . . . . . Protection 14 | . . . 1 . 2 1 1 2 . . . 7 . Artifact . | . . . . . . . . . . . . . . Weapon 16 | 2 . . . . 1 4 . 3 . . 4 2 . Energy Gun 4 | 2 . . . . . . . . . . . 2 . Energy Cannon 2 | . . . . . 1 . . 1 . . . . . Ballistic Gun 4 | . . . . . . 2 . 1 . . 1 . . Ballistic Cannon 2 | . . . . . . 1 . 1 . . . . . Launcher 1 | . . . . . . . . . . . 1 . . Special Weapon . | . . . . . . . . . . . . . . Impact Weapon 2 | . . . . . . 1 . . . . 1 . . Slashing Weapon 1 | . . . . . . . . . . . 1 . . Piercing Weapon . | . . . . . . . . . . . . . . Special Melee Weapon . | . . . . . . . . . . . . . . Unidentified Prototypes 16 | . . . . . . 2 1 7 . 1 . 5 . Parts Lost 28 | . . . . . . 1 . 4 . 2 2 19 . Power 4 | . . . . . . . . . . . 2 2 . Propulsion 10 | . . . . . . 1 . 2 . 1 . 6 . Utility 8 | . . . . . . . . . . 1 . 7 . Weapon 6 | . . . . . . . . 2 . . . 4 . Highest Loss Streak 8 | . . . . . . 1 . 4 . 1 1 8 . To Critical Strikes . | . . . . . . . . . . . . . . Average Backups 10 | 1 7 13 12 12 14 14 14 14 14 12 12 5 3 Power . | . 1 2 3 2 1 1 1 1 1 . . . . Propulsion 1 | . 4 5 3 3 1 1 1 1 1 1 1 . . Utility 3 | . . 2 2 4 3 3 3 4 2 3 5 3 2 Weapon 4 | . . 4 3 2 5 6 6 6 7 7 5 1 1 Tool/Special . | . . . . . . . . . . . . . . Unused Backups 29 | . . . 9 . 2 3 1 1 2 2 1 7 1 Power 4 | . . . 3 . . 1 . . . . . . . Propulsion 5 | . . . 2 . . . . . 1 . . 2 . Utility 6 | . . . . . . . . . 1 . 1 3 1 Weapon 12 | . . . 4 . 2 2 1 . . 1 . 2 . Tool/Special 2 | . . . . . . . . 1 . 1 . . . Average Slot Usage (%) 73 | . 90 100 100 100 88 98 90 88 94 79 58 59 10 Engine 5 | . 14 14 14 14 9 1 . . . . . 11 . Core 3 | . . . . . . 5 7 6 . 6 6 . . Reactor 2 | . . . . . . . . . 7 6 6 . . Treads 18 | . 28 28 28 28 17 15 14 7 15 14 15 21 . Leg 2 | . . . . . . . . . 7 7 6 . 5 Wheel 3 | . . . . . 14 15 6 13 7 2 . 2 . Device 8 | . 4 14 1 . 2 14 14 9 18 14 6 4 5 Storage 5 | . 14 14 14 14 9 7 7 7 7 6 5 . . Processor 1 | . . . . . 2 7 7 11 7 2 . . . Protection 4 | . . . 12 14 14 14 15 8 6 2 . 3 . Energy Gun 5 | . 28 28 28 28 15 2 . . . . . . . Ballistic Gun 5 | . . . . . . 10 15 13 . . 2 11 . Ballistic Cannon 2 | . . . . . . . . . 14 13 1 . . Slashing Weapon 1 | . . . . . . . . . . . 4 . . Peak Build Rating 99 | 6 8 8 15 15 29 43 63 83 77 91 99 95 27 Average Rating 51 | 4 6 8 11 15 22 40 55 54 63 62 54 72 21 On Entrance 30 | . 6 8 8 15 15 29 43 63 83 67 52 40 2 Avg Prop Armor Cover (%) 9 | . . . . . 13 8 2 12 19 10 3 9 . Naked Turns 45 | . . . . . . . . . . . . 30 15 Heaviest Build 115 | 14 30 30 52 52 59 67 68 102 80 111 115 98 1 Greatest Support 140 | 40 40 40 40 40 40 40 140 56 16 56 112 112 3 Greatest Overweight (x) 8 | . . . 1 1 2 6 1 6 4 5 2 8 . Average Overweight (x) 1 | . . . . 1 1 2 . 1 4 2 . 1 . Largest Inventory Capacity 20 | 8 15 15 20 20 20 20 20 20 20 20 20 20 5 Average Capacity 14 | 6 11 15 15 20 20 20 20 20 20 18 17 5 5 Most Carried 20 | 3 10 14 16 18 20 20 20 20 20 20 20 20 5 Average Carried 13 | 1 7 13 15 17 19 19 19 19 19 17 16 5 3 Final Capacity 20 | 8 15 15 20 20 20 20 20 20 20 20 20 5 5 Final Carried 20 | 3 10 14 16 18 20 20 20 20 20 19 20 5 2 Class Distribution -------------------- 77% | Mutant 22% | Scavenger-Mutant Dominant Class ---------------- Mutant | -10/Materials Mutant | -10/Mines Mutant | -10/Exiles Mutant | -9/Mines Mutant | -8/Materials Mutant | -7/Factory Mutant | -7/Waste Mutant | -7/Factory Mutant | -7/Lower Caves Mutant | -7/Lower Caves Mutant | -7/Zion Scavenger-Mutant | -7/Deep Caves Mutant | -6/Proximity Caves Resources | -11 -10 -10 -10 -9 -8 -7 -7 -7 -7 -7 -7 -7 -6 ----------- Run | Yrd Mat Min Exi Min Mat Fac Was Fac Low Low Zio Dee Pro Matter Collected 2597 | 259 21 . . 20 118 263 61 233 250 378 391 563 40 Remotely . | . . . . . . . . . . . . . . Salvage Created 1999 | . 241 215 . 23 225 516 . 313 9 158 152 147 . Parts 94 | . 5 15 . 5 8 19 . 15 . 11 9 7 . Haulers Intercepted 2 | . 1 . . . . 1 . . . . . . . Recyclers Shooed . | . . . . . . . . . . . . . . Parts Field Recycled . | . . . . . . . . . . . . . . Retrieved Matter . | . . . . . . . . . . . . . . Parts Self-Destructed 34 | . . . . . . . . . . 29 5 . . Prevented 6 | . . . . . . . . . . 6 . . . Parts Restored . | . . . . . . . . . . . . . . Kills | -11 -10 -10 -10 -9 -8 -7 -7 -7 -7 -7 -7 -7 -6 ------- Run | Yrd Mat Min Exi Min Mat Fac Was Fac Low Low Zio Dee Pro Combat Hostiles Destroyed 35 | . 5 8 . . 3 5 . 6 1 7 . . . Melee 1 | . . . . . . 1 . . . . . . . Guns 22 | . 4 8 . . 1 4 . 5 . . . . . Cannons 10 | . . . . . 1 . . 1 1 7 . . . Classes Destroyed 16 | . 3 1 . 1 2 2 . 2 . 3 2 . . Worker 5 | . . . . . 2 1 . 2 . . . . . Builder 1 | . . . . 1 . . . . . . . . . Tunneler 1 | . . 1 . . . . . . . . . . . Hauler 2 | . 1 . . . . 1 . . . . . . . Recycler 4 | . . . . . . 3 . 1 . . . . . Operator 1 | . . . . . . 1 . . . . . . . Drone 4 | . . . . . . . . . . . 4 . . Watcher 1 | . . . . . . . . 1 . . . . . Swarmer 13 | . 1 6 . . . . . 2 . 4 . . . Grunt 11 | . 4 2 . . . 5 . . . . . . . Brawler 2 | . . . . . . . . . . 2 . . . Sentry 4 | . . . . . 3 . . 1 . . . . . Hunter 4 | . . . . . . . . 3 1 . . . . Zionite 7 | . . . . . . . . . . . 7 . . Z-Technician 5 | . . . . . . . . . . . . 5 . Master Thief 1 | . . . . . . . . . . 1 . . . Martyr 1 | . . . . . . . . . . 1 . . . Best Kill Streak 4 | . 2 3 . 1 3 3 . 4 1 4 4 2 . Combat Bots Only 4 | . 2 3 . . 2 2 . 2 1 4 . . . Max Kills in Single Turn 2 | . 1 2 . 1 1 2 . 1 1 1 2 1 . Gunslinging 1 | . . . . . . 1 . . . . . . . Exploded . | . . . . . . . . . . . . . . Melee 1 | . . . . . . 1 . . . . . . . Uniques/NPCs Destroyed 1 | . . . . . . . . . . . 1 . . Imprinter (-7/Zion) Combat | -11 -10 -10 -10 -9 -8 -7 -7 -7 -7 -7 -7 -7 -6 -------- Run | Yrd Mat Min Exi Min Mat Fac Was Fac Low Low Zio Dee Pro Hostile Shots Fired 368 | . 16 29 . . 12 20 . 95 13 70 45 65 3 Missed 109 | . 5 14 . . 4 5 . 27 4 25 14 10 1 Hits 259 | . 11 15 . . 8 15 . 68 9 45 31 55 2 Melee 11 | . . . . . . . . . 2 5 4 . . Projectile 248 | . 11 15 . . 8 15 . 68 7 40 27 55 2 AOE 2 | . . . . . . . . 2 . . . . . Critical Strikes 7 | . . 1 . . . . . 3 . . 2 . 1 Damage Taken 5743 | . 124 154 . . 113 236 . 1248 127 523 706 2471 41 Core 759 | . 33 15 . . . 33 . 170 . 43 . 424 41 Absorbed by Shields 168 | . . . . . . . . . . 168 . . . Redirected to Shielding 20 | . . . . . . . . 20 . . . . . Regen/Repaired (Parts) 345 | . . . . . 86 . 182 77 . . . . . Core Remaining (%) 93 | 100 . . . 80 100 . . . . . . . . Volleys Fired 214 | . 22 27 . 2 13 18 . 30 8 27 28 37 2 Largest 2 | . 2 2 . 2 2 2 . 2 2 2 2 2 1 Hottest 130 | . 100 100 . 100 125 50 . 130 123 80 66 120 33 Shots Fired 390 | . 35 54 . 4 26 36 . 57 17 54 41 64 2 Gun 289 | . 35 54 . 4 21 36 . 48 1 . 26 64 . Cannon 84 | . . . . . 5 . . 9 16 54 . . . Launcher 17 | . . . . . . . . . . . 15 . 2 Special . | . . . . . . . . . . . . . . Kinetic 237 | . . . . . . 36 . 49 16 54 26 56 . Thermal 128 | . 35 54 . 4 26 . . 8 1 . . . . Explosive 17 | . . . . . . . . . . . 15 . 2 Electromagnetic . | . . . . . . . . . . . . . . Phasic 8 | . . . . . . . . . . . . 8 . Robot Hit Streak 20 | . 6 7 . 3 18 20 . 14 2 6 3 7 . Robot Miss Streak 7 | . 1 1 . 1 1 2 . 2 3 7 6 4 1 Penetration Max 1 | . . . . . . . . . . . 1 1 . Secondary Targets 2 | . . . . . . 1 . 1 . . . . . Max Gunslinging Chain 1 | . . . . . . 1 . 1 . . . . . Shots Hit Robots 214 | . 24 27 . 3 22 31 . 41 7 26 9 24 . Core Hits 108 | . 10 12 . 1 8 14 . 19 2 8 21 10 3 Critical Kills 2 | . . . . . . . . . . . 1 1 . Critical Parts Destroyed 4 | . . . . . . 1 . . . . 2 1 . Critical Strikes 19 | . 5 3 . . 2 1 . . 1 1 3 3 . Burn 10 | . 5 3 . . 2 . . . . . . . . Destroy 6 | . . . . . . . . . . . 3 3 . Blast 2 | . . . . . . . . . 1 1 . . . Smash 1 | . . . . . . 1 . . . . . . . Melee Attacks 7 | . . . . . . 4 . . . 1 2 . . Impact 5 | . . . . . . 4 . . . 1 . . . Slashing 2 | . . . . . . . . . . . 2 . . Piercing . | . . . . . . . . . . . . . . Sneak Attacks 2 | . . . . . . 2 . . . . . . . Combat Hostiles . | . . . . . . . . . . . . . . Follow-up Attacks . | . . . . . . . . . . . . . . Damage Inflicted 5300 | . 305 430 . 38 328 781 . 778 149 781 1000 601 109 Guns 2943 | . 305 430 . 38 228 478 . 583 26 . 254 601 . Cannons 1199 | . . . . . 100 . . 195 123 781 . . . Explosions 855 | . . . . . . . . . . . 746 . 109 Melee 303 | . . . . . . 303 . . . . . . . Ramming . | . . . . . . . . . . . . . . Kinetic 2813 | . . . . . . 478 . 583 149 781 254 568 . Thermal 1296 | . 305 430 . 38 328 . . 195 . . . . . Explosive 855 | . . . . . . . . . . . 746 . 109 Electromagnetic . | . . . . . . . . . . . . . . Impact 303 | . . . . . . 303 . . . . . . . Slashing . | . . . . . . . . . . . . . . Piercing . | . . . . . . . . . . . . . . Phasic 33 | . . . . . . . . . . . . 33 . Highest Corruption 2 | . . . . . 2 . . 2 2 2 2 1 1 Average Corruption 1 | . . . . . 1 . . 1 2 2 1 1 1 Corruption Purged . | . . . . . . . . . . . . . . Corruption Blocked . | . . . . . . . . . . . . . . Effects 80 | . . . . . 7 . . 6 11 15 6 33 2 Message Errors 25 | . . . . . 3 . . 2 3 5 1 11 . Matter Fused 13 | . . . . . 1 . . . 2 3 3 4 . Heat Flow Errors 11 | . . . . . . . . 2 2 2 . 4 1 Energy Discharges 12 | . . . . . . . . 1 1 1 1 7 1 Parts Fused 1 | . . . . . . . . . . 1 . . . Data Loss (minor) 10 | . . . . . 1 . . . 1 2 1 5 . Data Loss (major) 4 | . . . . . . . . 1 1 1 . 1 . Misfires 3 | . . . . . 1 . . . 1 . . 1 . Weapon Failures 1 | . . . . . 1 . . . . . . . . Overload Shots . | . . . . . . . . . . . . . . Overflow Damage 232 | . . . . . . 205 . . . 27 . . . Projectiles 27 | . . . . . . . . . . 27 . . . Explosions . | . . . . . . . . . . . . . . Melee 205 | . . . . . . 205 . . . . . . . Knockbacks 3 | . . . . . . . . . . 3 . . . Impact . | . . . . . . . . . . . . . . Kinetic 3 | . . . . . . . . . . 3 . . . Secondary . | . . . . . . . . . . . . . . Self-Inflicted Damage 38 | . . . . . . . . . . . 38 . . Shots 1 | . . . . . . . . . . . 1 . . Rammed . | . . . . . . . . . . . . . . Targets Rammed . | . . . . . . . . . . . . . . Kicked . | . . . . . . . . . . . . . . Crushed . | . . . . . . . . . . . . . . Highest Temperature 363 | . 363 90 . 48 153 . . 161 216 258 13 212 214 Average Temperature 65 | . 110 23 . 24 38 . . 63 92 87 7 58 112 Received Heat Transfer 1045 | . 66 66 . . 27 135 . 135 . 77 136 357 46 Effects 1 | . 1 . . . . . . . . . . . . Interference 1 | . 1 . . . . . . . . . . . . Siege Activations . | . . . . . . . . . . . . . . Martial Activations . | . . . . . . . . . . . . . . Shielding Activations . | . . . . . . . . . . . . . . Robots Disrupted . | . . . . . . . . . . . . . . Combat Hostiles . | . . . . . . . . . . . . . . Robots Corrupted . | . . . . . . . . . . . . . . Combat Hostiles . | . . . . . . . . . . . . . . Parts Fried 4 | . . . . . . 2 . . . 2 . . . Impact Corruptions 2 | . . . . . . 2 . . . . . . . Robots Melted 2 | . 1 . . . 1 . . . . . . . . Combat Hostiles 2 | . 1 . . . 1 . . . . . . . . Parts Melted 14 | . 7 2 . . 4 . . 1 . . . . . Heat Transferred 4051 | . 1258 1480 . 111 962 . . 240 . . . . . Parts Sabotaged . | . . . . . . . . . . . . . . Parts Stolen 5 | . . . . . . . . . 2 3 . . . Parts Stripped . | . . . . . . . . . . . . . . Power Chain Reactions . | . . . . . . . . . . . . . . Alert | -11 -10 -10 -10 -9 -8 -7 -7 -7 -7 -7 -7 -7 -6 ------- Run | Yrd Mat Min Exi Min Mat Fac Was Fac Low Low Zio Dee Pro Maximum Alert Level 3 | . . . . . . . . 3 . . . . . Low Security (%) 83 | 100 100 100 . 100 100 100 100 18 . . . . . Level 1 2 | . . . . . . . . 12 . . . . . Level 2 10 | . . . . . . . . 54 . . . . . Level 3 2 | . . . . . . . . 13 . . . . . Level 4 . | . . . . . . . . . . . . . . Level 5 . | . . . . . . . . . . . . . . High Security . | . . . . . . . . . . . . . . Max Security . | . . . . . . . . . . . . . . Peak Influence 883 | . 50 70 . 5 50 75 14 883 . . . . . Initial 14 | . . . . . . 6 14 . . . . . . Average 99 | . 17 14 . . 9 21 . 452 . . . . . Influence Increases 2402 | . 157 225 . 5 102 172 . 1355 35 351 . . . Destroy 0b10 Robot/C 1180 | . 100 160 . . 60 100 . 520 20 220 . . . Destroy 0b10 Robot/NC 110 | . 5 5 . 5 10 30 . 55 . . . . . Destroy Leader 232 | . 22 30 . . 30 12 . 118 10 10 . . . Allied During Kill 504 | . . . . . . . . 468 5 31 . . . Successful Hack 21 | . . . . . . . . 21 . . . . . Disable Machine 60 | . . . . . . . . 60 . . . . . Destroy Structure 115 | . . . . . 2 . . 113 . . . . . Lose Combat Pursuer 180 | . 30 30 . . . 30 . . . 90 . . . Influence Decreases 2402 | . 157 223 2 5 88 146 40 472 645 483 141 . . Entered New Map 557 | . . . 2 . . 8 26 . 327 53 141 . . Time Decay 1635 | . 157 223 . 5 88 138 14 282 318 410 . . . Lost Part 60 | . . . . . . . . 40 . 20 . . . Lost Ally 150 | . . . . . . . . 150 . . . . . Squads Dispatched 11 | . 2 . . . . 1 . 7 . 1 . . . Investigation 1 | . . . . . . . . 1 . . . . . Extermination 2 | . . . . . . . . 2 . . . . . Reinforcement 6 | . 2 . . . . 1 . 3 . . . . . Assault 1 | . . . . . . . . . . 1 . . . Garrison 1 | . . . . . . . . 1 . . . . . Intercept . | . . . . . . . . . . . . . . Searches Triggered . | . . . . . . . . . . . . . . Construction Impeded 1 | . . . . . . . . 1 . . . . . Haulers Reinforced . | . . . . . . . . . . . . . . Active Scanning Responses . | . . . . . . . . . . . . . . Cargo Convoy Interrupts 1 | . . . . . . . . 1 . . . . . Stealth | -11 -10 -10 -10 -9 -8 -7 -7 -7 -7 -7 -7 -7 -6 --------- Run | Yrd Mat Min Exi Min Mat Fac Was Fac Low Low Zio Dee Pro Distress Signals 4 | . 1 . . . . . . 3 . . . . . Communications Jammed . | . . . . . . . . . . . . . . Distress Signals . | . . . . . . . . . . . . . . Times Spotted 139 | . 9 7 . . 5 10 . 30 5 18 43 11 1 Peak Tracking Total 11 | . 4 2 . . 3 3 . 11 2 7 7 5 2 Tactical Retreats 13 | . 1 2 . . . 2 . . . 6 . 2 . Traps | -11 -10 -10 -10 -9 -8 -7 -7 -7 -7 -7 -7 -7 -6 ------- Run | Yrd Mat Min Exi Min Mat Fac Was Fac Low Low Zio Dee Pro Traps Triggered 7 | . . . . . 3 2 . 2 . . . . . Indirectly . | . . . . . . . . . . . . . . Trap Hack Attempts . | . . . . . . . . . . . . . . Triggered . | . . . . . . . . . . . . . . Disarmed . | . . . . . . . . . . . . . . Reprogrammed . | . . . . . . . . . . . . . . Reused . | . . . . . . . . . . . . . . Traps Extracted . | . . . . . . . . . . . . . . Installed . | . . . . . . . . . . . . . . Triggered . | . . . . . . . . . . . . . . Machines | -11 -10 -10 -10 -9 -8 -7 -7 -7 -7 -7 -7 -7 -6 ---------- Run | Yrd Mat Min Exi Min Mat Fac Was Fac Low Low Zio Dee Pro Machines Disabled 10 | . . . . . . . . 4 . . 3 3 . Max in Single Turn 1 | . . . . . . . . 1 . . 1 1 . Garrison Access 2 | . . . . . . . . 2 . . . . . Machines Repaired . | . . . . . . . . . . . . . . Machines Dismantled . | . . . . . . . . . . . . . . Machines Sabotaged . | . . . . . . . . . . . . . . Overloaded Fab Kills . | . . . . . . . . . . . . . . Hacking | -11 -10 -10 -10 -9 -8 -7 -7 -7 -7 -7 -7 -7 -6 --------- Run | Yrd Mat Min Exi Min Mat Fac Was Fac Low Low Zio Dee Pro Machines Accessed 11 | . . . 2 . 1 . . 6 1 . 1 . . Terminals 4 | . . . . . . . . 4 . . . . . Fabricators . | . . . . . . . . . . . . . . Repair Stations 1 | . . . . . 1 . . . . . . . . Recycling Units . | . . . . . . . . . . . . . . Scanalyzers . | . . . . . . . . . . . . . . Garrison Access 2 | . . . . . . . . 2 . . . . . Total Hacks 20 | . . . 2 . 2 . . 9 1 . 6 . . Successful 16 | . . . 2 . 2 . . 5 1 . 6 . . Failed 4 | . . . . . . . . 4 . . . . . Catastrophic 1 | . . . . . . . . 1 . . . . . Database Lockouts . | . . . . . . . . . . . . . . Manual 12 | . . . 1 . . . . 6 . . 5 . . Terminals 7 | . . . . . . . . 7 . . . . . Fabricators . | . . . . . . . . . . . . . . Repair Stations 2 | . . . . . 2 . . . . . . . . Recycling Units . | . . . . . . . . . . . . . . Scanalyzers . | . . . . . . . . . . . . . . Garrison Access 2 | . . . . . . . . 2 . . . . . Terminal Hacks 12 | . . . 2 . . . . 3 1 . 6 . . Record 1 | . . . 1 . . . . . . . . . . Part Schematic 6 | . . . . . . . . . . . 6 . . Open Door 1 | . . . . . . . . . 1 . . . . Branch Access Points 1 | . . . . . . . . 1 . . . . . Alert Level 1 | . . . . . . . . 1 . . . . . Zone Layout 1 | . . . . . . . . 1 . . . . . Proto ID Catalog 1 | . . . 1 . . . . . . . . . . Fabricator Hacks . | . . . . . . . . . . . . . . Repair Station Hacks 2 | . . . . . 2 . . . . . . . . Scan Component 1 | . . . . . 1 . . . . . . . . Repair 1 | . . . . . 1 . . . . . . . . Recycling Unit Hacks . | . . . . . . . . . . . . . . Scanalyzer . | . . . . . . . . . . . . . . Garrison Access Hacks 2 | . . . . . . . . 2 . . . . . Seal Access 2 | . . . . . . . . 2 . . . . . Unauthorized Hacks . | . . . . . . . . . . . . . . Terminals . | . . . . . . . . . . . . . . Fabricators . | . . . . . . . . . . . . . . Repair Stations . | . . . . . . . . . . . . . . Recycling Units . | . . . . . . . . . . . . . . Scanalyzers . | . . . . . . . . . . . . . . Garrison Access . | . . . . . . . . . . . . . . Data Cores Recovered . | . . . . . . . . . . . . . . Used . | . . . . . . . . . . . . . . Hacking Detections 4 | . . . . . 1 . . 3 . . . . . Full Trace Events 1 | . . . . . . . . 1 . . . . . Feedback Events . | . . . . . . . . . . . . . . Feedback Blocked . | . . . . . . . . . . . . . . Robot Schematics Acquired 4 | . . . . . . . . . . . 4 . . Robots Built . | . . . . . . . . . . . . . . Authchips . | . . . . . . . . . . . . . . Time . | . . . . . . . . . . . . . . Total Robot Build Rating . | . . . . . . . . . . . . . . Part Schematics Acquired 18 | . . . . . . . . . . . 18 . . Parts Built . | . . . . . . . . . . . . . . Authchips . | . . . . . . . . . . . . . . Time . | . . . . . . . . . . . . . . Total Part Build Rating . | . . . . . . . . . . . . . . Part Studies Acquired . | . . . . . . . . . . . . . . Parts Repaired 1 | . . . . . 1 . . . . . . . . Time 26 | . . . . . 26 . . . . . . . . Parts Recycled . | . . . . . . . . . . . . . . Recycled Matter . | . . . . . . . . . . . . . . Retrieved Matter . | . . . . . . . . . . . . . . Retrieved Components . | . . . . . . . . . . . . . . Parts Scanalyzed . | . . . . . . . . . . . . . . Part Schematics Acquired . | . . . . . . . . . . . . . . Parts Damaged . | . . . . . . . . . . . . . . Bothacking | -11 -10 -10 -10 -9 -8 -7 -7 -7 -7 -7 -7 -7 -6 ------------ Run | Yrd Mat Min Exi Min Mat Fac Was Fac Low Low Zio Dee Pro Used RIF Installer . | . . . . . . . . . . . . . . Robots Hacked . | . . . . . . . . . . . . . . Non-combat . | . . . . . . . . . . . . . . Combat . | . . . . . . . . . . . . . . Robot Hacks Applied . | . . . . . . . . . . . . . . Relay Couplers Released . | . . . . . . . . . . . . . . Fabnet Peak Effective % . | . . . . . . . . . . . . . . Robots Rewired 2 | . . . . . . . . . . 2 . . . Allies Hacked 1 | . . . . . . . . 1 . . . . . Hacks Repelled . | . . . . . . . . . . . . . . Allies | -11 -10 -10 -10 -9 -8 -7 -7 -7 -7 -7 -7 -7 -6 -------- Run | Yrd Mat Min Exi Min Mat Fac Was Fac Low Low Zio Dee Pro Total Allies 23 | . . 1 . . . . 20 . . 2 . . . Largest Group 20 | . . 1 . . . . 20 20 2 2 2 . . Highest-Rated Group 480 | . . 31 . . . . 480 480 54 33 32 . . Highest-Rated Ally 35 | . . 31 . . . . 35 35 33 33 16 . . Total Orders 104 | . . . . . . . . . . 2 26 76 . STAY 16 | . . . . . . . . . . . 4 12 . FOLLOW 3 | . . . . . . . . . . . 1 2 . RETURN 85 | . . . . . . . . . . 2 21 62 . Ally Attacks 587 | . . . . . . . . 139 . 52 271 125 . Total Damage 10163 | . . . . . . . . 4323 . 700 3515 1625 . Kills 94 | . . . . . . . . 30 . 5 47 12 . Allies Corrupted 1 | . . . . . . . . . . . . 1 . Allies Melted . | . . . . . . . . . . . . . . Intel | -11 -10 -10 -10 -9 -8 -7 -7 -7 -7 -7 -7 -7 -6 ------- Run | Yrd Mat Min Exi Min Mat Fac Was Fac Low Low Zio Dee Pro Active Infowar (turns) 1426 | . . . . . . . . . 687 739 . . . Jamming 1426 | . . . . . . . . . 687 739 . . . Robot Analysis Total . | . . . . . . . . . . . . . . Derelict Logs Recovered 5 | . . 1 . . . . . . 1 1 2 . . Drone Launches 182 | . . . . . . . . . . 12 78 92 . Drone Recoveries 158 | . . . . . . . . . . 12 68 78 . Exploration | -11 -10 -10 -10 -9 -8 -7 -7 -7 -7 -7 -7 -7 -6 ------------- Run | Yrd Mat Min Exi Min Mat Fac Was Fac Low Low Zio Dee Pro Turns Passed 13373 | 81 420 1119 511 109 467 369 562 779 711 996 3484 3656 109 Spaces Moved 6753 | 47 215 647 289 43 304 186 290 532 419 410 1375 1950 46 Core 110 | 5 . . . . . . . . . . . 59 46 Treads 3948 | 42 215 647 289 43 26 35 290 11 . 208 1375 767 . Legs . | . . . . . . . . . . . . . . Wheels 2441 | . . . . . 278 151 . 521 419 202 . 870 . Hover 254 | . . . . . . . . . . . . 254 . Flight . | . . . . . . . . . . . . . . Fastest Speed 48 | 50 160 160 160 240 110 110 160 115 160 130 160 48 50 Average Speed 176 | 148 160 160 171 240 121 146 181 121 160 206 238 165 50 Slowest Speed 480 | 160 160 160 240 240 320 240 240 240 160 240 320 480 50 Overloaded Moves . | . . . . . . . . . . . . . . Propulsion Burnouts . | . . . . . . . . . . . . . . Robots Hopped . | . . . . . . . . . . . . . . Potential Cave-ins . | . . . . . . . . . . . . . . Cave-ins Triggered . | . . . . . . . . . . . . . . Time Travels 1 | . . . . . . . . 1 . . . . . Exploration Rate (%) 45 | 3 40 96 60 9 29 4 95 21 67 42 88 77 9 Regions Visited 13 Branch Regions 8 Pre-discovered Areas 3 | . . . 1 . . . . . . . 2 . . Known Exits Taken 2 | . . . . . . . . 1 1 . . . . Unknown Exits Taken 9 | 1 1 1 1 1 1 . . . . 1 1 1 . Scrap Searched 10 | . . 1 . 1 . . . . 3 . 4 . 1 Spaces Dug 13 | . . . . . . . . . . 1 . 5 7 Terrain Destroyed 53 | . . . . . 1 . . . 3 11 19 8 11 Melee 1 | . . . . . . . . . . 1 . . . Projectile 21 | . . . . . 1 . . . 3 10 . 7 . AOE 30 | . . . . . . . . . . . 19 . 11 Terrain Rammed . | . . . . . . . . . . . . . . Walls Destroyed . | . . . . . . . . . . . . . . Machines Disabled . | . . . . . . . . . . . . . . Actions | -11 -10 -10 -10 -9 -8 -7 -7 -7 -7 -7 -7 -7 -6 --------- Run | Yrd Mat Min Exi Min Mat Fac Was Fac Low Low Zio Dee Pro Total 7865 | 55 256 677 312 46 375 254 329 624 445 506 1536 2319 131 Wait 591 | . 11 . . . 32 21 10 21 3 29 98 285 81 Move 6741 | 46 214 646 288 42 303 186 289 531 418 409 1374 1949 46 Hop . | . . . . . . . . . . . . . . Pick Up 86 | 3 6 4 9 2 9 5 5 8 6 12 13 4 . Fast Attach 72 | 6 2 . . . 6 7 2 8 2 7 8 24 . Attach 20 | . . . 1 . 4 1 1 6 2 2 . 1 2 Detach 1 | . 1 . . . . . . . . . . . . Swap 17 | . . . 1 . 1 4 3 1 2 2 3 . . Drop 90 | . . . 13 . 7 8 10 11 4 10 10 17 . Fire 214 | . 22 27 . 2 13 18 . 30 8 27 28 37 2 Melee 7 | . . . . . . 4 . . . 1 2 . . Ram . | . . . . . . . . . . . . . . Kick . | . . . . . . . . . . . . . . Crush . | . . . . . . . . . . . . . . Escape Stasis 8 | . . . . . . . . 8 . . . . . Rewire 18 | . . . . . . . 9 . . 7 . 2 . Trap . | . . . . . . . . . . . . . . Miscellaneous . | . . . . . . . . . . . . . . Route ------- -11/Scrapyard -10/Materials (discovered 2 exits: [*Mat] / [*Min]) -10/Mines (discovered 3 exits: [*Mat x2] / *Exi) -10/Exiles -9/Mines -8/Materials -7/Factory -7/Waste -7/Factory (discovered 5 exits: *Fac / *Sto x2 / *Low x2) -7/Lower Caves -7/Lower Caves -7/Zion (discovered 2 exits: [*Dee] / [*Pro]) -7/Deep Caves -6/Proximity Caves History --------- Turn | Location | Event 4 | -11/Scrapyard | Discovered new exit (range 16) 82 | -11/Scrapyard | Entered Materials 302 | -10/Materials | Build established: Mutant 333 | -10/Materials | Discovered new exit (range 5) 477 | -10/Materials | Discovered new exit (range 8) 502 | -10/Materials | Entered Mines 559 | -10/Mines | Received a Mining Laser from a helpful Derelict 757 | -10/Mines | Discovered new exit (range 14) 1113 | -10/Mines | Deemed a non-threat by the Exiles lab entrance 1113 | -10/Mines | Discovered new exit (range 5) 1189 | -10/Mines | Discovered new exit (range 10) 1482 | -10/Mines | Learned 4 Materials zone layouts 1621 | -10/Mines | Entered Exiles 1684 | -10/Exiles | Met 8R-AWN 1710 | -10/Exiles | Met EX-HEX 1783 | -10/Exiles | Met EX-DEC 1790 | -10/Exiles | Learned location of Zion (-7) 1815 | -10/Exiles | Met EX-BIN 1841 | -10/Exiles | Aligned with FarCom system 1842 | -10/Exiles | Given EX-Vault access code 1881 | -10/Exiles | Opened EX-Vault 1895 | -10/Exiles | Found Army-in-a-Box 1900 | -10/Exiles | Found Chronowheel 1908 | -10/Exiles | Found Superbattery 1939 | -10/Exiles | Warned to stay clear of 0b10 Research branches 1954 | -10/Exiles | Exiles lab attacked by MAIN.C 2081 | -10/Exiles | Discovered new exit (range 11) 2132 | -10/Exiles | Stole three prototypes: Superbattery, Army-in-a-Box, Chronowheel 2132 | -10/Exiles | Entered Mines 2139 | -9/Mines | Received a Rocket Launcher from a helpful Derelict 2224 | -9/Mines | Discovered new exit (range 5) 2241 | -9/Mines | Entered Materials 2241 | -8/Materials | Evolved 4 slots: Propulsion x2, Utility x2 2327 | -8/Materials | Repaired Lgt. Treads 2686 | -8/Materials | Discovered new exit (range 10) 2708 | -8/Materials | Entered Factory 2708 | -7/Factory | Evolved 2 slots: Utility x2 2710 | -7/Factory | FarCom data flow suspended 3077 | -7/Factory | Sucked down chute 3077 | -7/Factory | Entered Waste 3078 | -7/Waste | Joined by Warlord forces that had cleared the area 3380 | -7/Waste | Discovered new exit (range 16) 3639 | -7/Waste | Entered Factory 3639 | -7/Factory | Accompanied by 20 allies 3763 | -7/Factory | Activated Chronowheel 3763 | -7/Factory | Spacetime reconverged on an earlier point 3790 | -7/Factory | Discovered new exit (range 16) 3811 | -7/Factory | Lost 6 allies 3941 | -7/Factory | Discovered new exit (range 15) 3970 | -7/Factory | Identified exit to Factory 4166 | -7/Factory | Identified exit to Storage 4166 | -7/Factory | Identified exit to Lower Caves 4303 | -7/Factory | Cargo convoy interrupted 4308 | -7/Factory | Garrison activated, responded to threat 4356 | -7/Factory | Found Prototype Protection 4356 | -7/Factory | Identified Active Cooling Armor 4364 | -7/Factory | Lost 6 allies 4367 | -7/Factory | Lost 4 parts (2n2w) 4418 | -7/Factory | Entered Lower Caves 4418 | -7/Lower Caves | Accompanied by 2 allies 4419 | -7/Lower Caves | Superbattery stolen by Master Thief 4419 | -7/Lower Caves | Active Cooling Armor stolen by Master Thief 4420 | -7/Lower Caves | Encountered a Master Thief 4420 | -7/Lower Caves | Encountered a Master Thief 5065 | -7/Lower Caves | Learned 4 Factory zone layouts 5088 | -7/Lower Caves | Discovered new exit (range 14) 5123 | -7/Lower Caves | Identified exit to Lower Caves 5129 | -7/Lower Caves | Entered another Lower Caves area 5129 | -7/Lower Caves | Accompanied by 1 ally 5175 | -7/Lower Caves | Found Alien Artifact 5175 | -7/Lower Caves | Identified Core Expander 5175 | -7/Lower Caves | Installed Core Expander, added new Power slot 5525 | -7/Lower Caves | Attracted the attention of an 0b10 outpost 5984 | -7/Lower Caves | Encountered a Master Thief 5984 | -7/Lower Caves | Encountered a Master Thief 5985 | -7/Lower Caves | Encountered a Master Thief 5986 | -7/Lower Caves | Adv. Transmission Jammer stolen by Master Thief 5987 | -7/Lower Caves | EM Pulse Cannon stolen by Master Thief 5993 | -7/Lower Caves | Hvy. Antimatter Reactor stolen by Master Thief 6039 | -7/Lower Caves | Learned location of 1 exit from Factory 6091 | -7/Lower Caves | Discovered new exit (range 6) 6125 | -7/Lower Caves | Entered Zion 6125 | -7/Zion | Accompanied by 2 allies 6345 | -7/Zion | Discovered new exit (range 13) 6454 | -7/Zion | System corruption cleaned by Quarantine Array 8403 | -7/Zion | Learned location of Warlord (-5) 9138 | -7/Zion | Met Imprinter 9202 | -7/Zion | Attacked by Zionites 9208 | -7/Zion | Allies destroyed Imprinter 9212 | -7/Zion | Extracted access codes from Imprinter's data core 9247 | -7/Zion | Lost 3 allies 9374 | -7/Zion | Lost 4 allies 9496 | -7/Zion | Opened final containment barrier to the Deep Caves 9520 | -7/Zion | Lost 3 allies 9606 | -7/Zion | Discovered new exit (range 3) 9606 | -7/Zion | Saw the warning signs outside the Deep Caves entrance 9609 | -7/Zion | Entered Deep Caves 9813 | -7/Deep Caves | Z-Facility disabled 10201 | -7/Deep Caves | Lost 6 allies 10216 | -7/Deep Caves | Build established: Scavenger-Mutant 10509 | -7/Deep Caves | Discovered new exit (range 7) 11660 | -7/Deep Caves | Found Prototype Protection 11660 | -7/Deep Caves | Identified Zio. Weapon Casing 11672 | -7/Deep Caves | Found Zio. Weapon Casing 11939 | -7/Deep Caves | Found Prototype Protection 11939 | -7/Deep Caves | Identified Zio. Heavy Carapace 11949 | -7/Deep Caves | Found Zio. Heavy Carapace 11954 | -7/Deep Caves | Found Zio. Heavy Carapace 12130 | -7/Deep Caves | Spotted Golem 12360 | -7/Deep Caves | Found Zio. Heavy Carapace 12679 | -7/Deep Caves | Lost 5 parts (4u1w) 12693 | -7/Deep Caves | Core integrity fell below 50% 12717 | -7/Deep Caves | Allies destroyed Golem 12726 | -7/Deep Caves | Lost 3 parts (1p1n1w) 12734 | -7/Deep Caves | Found GOLEM Unit 13218 | -7/Deep Caves | Exposed GOLEM chamber 13219 | -7/Deep Caves | Triggered Deep Caves wall 13233 | -7/Deep Caves | Core integrity fell below 20% 13265 | -7/Deep Caves | Entered Proximity Caves 13266 | -6/Proximity Caves | Lost 8 parts (1p4n1u2w) 13374 | -6/Proximity Caves | Destroyed by G-67 Veteran with Plasma Rifle Last Messages --------------- 13218_ Wall Chamber breached. 13218_ A GOLEM Unit tumbles out of the Wall Chamber. 13219_ Zio. Phaser-S destroyed. 13219_ Zio. Glidesys I destroyed. 13219_ Lgt. Ion Engine destroyed. 13219_ Zio. Glidesys I destroyed. 13232_ Army-in-a-Box destroyed. 13232_ Zio. Glidesys I destroyed. 13232_ >> Lost connection to Army Drone. 13235_ Zio. Phaser-S destroyed. LOCATION=UNKNOWN GOAL=ESCAPE 13268_ Searching scrap... 13268_ Found 40 Matter. 13268_ Found 54 Matter. 13269_ Acquired 40 matter. 13273_ System corrupted: Heat flow error (+248). 13281_ GOLEM Unit beginning Asb. Alloy Leg integration. 13293_ System corrupted: Energy discharge (-25). 13374_ Critical hit (Burn: +50). Map ----- +----------------------------------------------------+ | ?????????????????????????????????????????????????? | | ?????????????????????????????????????????????????? | | ?????????????????????????????????????????????????? | | ?????????????????????????????????????????????????? | | ?????????????????????????????????????????????????? | | ?????????????????????????????????????????????????? | | ?????????????????????????????????????????????????? | | ?????????????????????????????????????????????????? | | ?????????????????????????????????????????????????? | | ?????????????????????????????????????????????????? | | ?????????????????????????????????????????????????? | | ?????????????????????????????????????????????????? | | ?????????????????????????????????????????????????? | | ????????????????????????????????####?????????????? | | ??????????????????????????????## ##????????????? | | ????????????????????????????## #????????????? | | ???????###??????????????????# ###### ??????? | | ???????# ##???????????????## ?????? | | ???????# ##?????######### ?????? | | ???????# #????# ????? | | ???????# ????# ????? | | ???????# ?# ##??# ####### ????? | | ???????# ??# #### #?????# #### ???????? | | ???????# ???# #???## g #???????????? | | ???????# ###### ####??## # #??????????? | | ???????# ### #???#?#@ #? #??????????? | | ???????# # ### ### ###??? #??????????? | | ???????# % ## #??????#??????????? | | ????????# # % ## ##?????????????????? | | ????????## # " " #######??????????????????? | | ??????????# # """ "" #????????????????????????? | | ?????????## # """" "" #????????????????????????? | | ?????????# "" " #????????????????????????? | | ????????# ???????????????????????? | | ????????## ## ????????????????????? | | ?????????# ?###### ????????????????????? | | ?????????# ??????? #????????????????????? | | ?????????# ???????? ####?????????????????????? | | ?????????# ?????????? ##????????????????????????? | | ?????????# ?????????? ##?????????????????????????? | | ?????????# ???????????#??????????????????????????? | | ????????? ??????????????????????????????????????? | | ????????? ???????????????????????????????????????? | | ????????? ???????????????????????????????????????? | | ???????? ???????????????????????????????????????? | | ???????? ???????????????????????????????????????? | | ???????? ????????????????????????????????????????? | | ?????????????????????????????????????????????????? | | ?????????????????????????????????????????????????? | | ?????????????????????????????????????????????????? | +----------------------------------------------------+ Best States ------------- Heat Dissipation 121 Energy Generation 34 Energy Capacity 560 Matter Stores 300 Matter Capacity 300 Sight Range 16 Terrain Scan Density 10 Jamming Range 16 Armor Coverage 3600 Power Shielding 90 Weapon Cycling 15 Evasion (%) 55 Targeting Accuracy 8 Recoil Reduction 4 Offensive Hacking 10 Item Schematics ----------------- Riot Gun | -7/Zion | Free Battle Cannon | -7/Zion | Free Flamer | -7/Zion | Free Slug Cannon | -7/Zion | Free Enh. Flamer | -7/Zion | Free Barrage Gun | -7/Zion | Free Imp. Melee Analysis Suite | -7/Zion | Archive Imp. Trap Scanner | -7/Zion | Archive Powered Hammer | -7/Zion | Archive Hvy. Plasma Cannon | -7/Zion | Archive Adv. Sensor Array | -7/Zion | Archive Chainsword | -7/Zion | Archive KE Penetrator | -7/Zion | Archive Imp. Focal Shield | -7/Zion | Archive Adv. Assault Cannon | -7/Zion | Archive Magnetic Acceleration Cannon | -7/Zion | Archive Adv. Signal Interpreter | -7/Zion | Archive Coolant Injector | -7/Zion | Archive Robot Schematics ------------------ B-36 Bruiser | -7/Zion | Archive L-41 Fighter | -7/Zion | Archive O-24 Administrator | -7/Zion | Archive G-73 Enforcer | -7/Zion | Archive Fabricated ------------ Nothing Repaired ---------- Lgt. Treads | 38% | -8/Materials Studied --------- None Alien Tech Used ----------------- Core Expander Achievements -------------- Spacetime Is Relative Challenges ------------ None Game ------ Seed AntimissilePlasmaFlightbrick Manual? 0 Play Time 01:02:22 Cumulative 491.9 hours Start 2026.05.02 @ 10:41:11 End 2026.05.02 @ 11:44:06 Sessions 2 Manual Loads 0 Difficulty Rogue Special Mode None Game No. 416 Rogue 380 Adventurer 36 Explorer 0 Win Type - Total 21 Types 9/0/11/0/0/0/1/0/0/0 Lore% 73 Gallery% 85 Achievement% 70 Wizard Run 0 Options --------- Layout 0 ASCII 0 Keyboard 0 Movement Mouse Keybinds 0 Fullscreen 1 Font 18/SmallcapsGlow Map View 76x50 Zoom Use 0% Tactical HUD 1 Map Filters NONE Filters NONE Steam 1 RUN: f7f79012-6449-4735-ab82-7426ca318d9d